[Event "*** Titled Tuesday Blitz"]
[Site "Chess.com"]
[Date "2020.04.14"]
[Round "2"]
[White "kungmongmanh"]
[Black "kaumandur01"]
[Result "0-1"]
[WhiteElo "2551"]
[BlackElo "2795"]
[TimeControl "180+1"]
[EndTime "10:18:17 PDT"]
[Termination "kaumandur01 won by resignation"]

1. d4 {[%clk 0:03:00.9]} 1... Nf6 {[%clk 0:02:59.5]} 2. c4 {[%clk 0:03:00.1]}
2... g6 {[%clk 0:02:59.7]} 3. Nc3 {[%clk 0:03:00.2]} 3... Bg7 {[%clk 0:03:00.3]}
4. e4 {[%clk 0:03:00.4]} 4... d6 {[%clk 0:03:00.9]} 5. Nf3 {[%clk 0:03:00.9]}
5... O-O {[%clk 0:03:01.5]} 6. Be2 {[%clk 0:03:01.2]} 6... e5 {[%clk 0:03:02.2]}
7. O-O {[%clk 0:03:01.3]} 7... Nc6 {[%clk 0:03:02.4]} 8. d5 {[%clk 0:03:01.8]}
8... Ne7 {[%clk 0:03:02.7]} 9. Ne1 {[%clk 0:03:02]} 9... c5 {[%clk 0:02:57.7]}
10. Be3 {[%clk 0:02:48.4]} 10... Ne8 {[%clk 0:02:54]} 11. a3 {[%clk 0:02:47.4]}
11... f5 {[%clk 0:02:53.6]} 12. f3 {[%clk 0:02:47.4]} 12... f4 {[%clk
0:02:53.3]} 13. Bf2 {[%clk 0:02:47.6]} 13... g5 {[%clk 0:02:49.8]} 14. b4 {[%clk
0:02:47.6]} 14... b6 {[%clk 0:02:50.4]} 15. Nd3 {[%clk 0:02:47.1]} 15... h5
{[%clk 0:02:47]} 16. a4 {[%clk 0:02:45.4]} 16... a5 {[%clk 0:02:45.6]} 17. bxc5
{[%clk 0:02:43.6]} 17... bxc5 {[%clk 0:02:45.5]} 18. Rb1 {[%clk 0:02:37.9]}
18... Rf6 {[%clk 0:02:38.7]} 19. Qb3 {[%clk 0:02:25.9]} 19... Ba6 {[%clk
0:01:46.2]} 20. Rfc1 {[%clk 0:02:04.9]} 20... Rg6 {[%clk 0:01:42.1]} 21. Qb6
{[%clk 0:01:46.2]} 21... Qd7 {[%clk 0:01:13.8]} 22. Qxa5 {[%clk 0:01:16.9]}
22... g4 {[%clk 0:01:10.7]} 23. Rb6 {[%clk 0:01:15.3]} 23... Nc7 {[%clk
0:01:08.5]} 24. Bxc5 {[%clk 0:00:52.7]} 24... Bxc4 {[%clk 0:00:50.1]} 25. Qb4
{[%clk 0:00:52]} 25... Bxd3 {[%clk 0:00:49.2]} 26. Bxd6 {[%clk 0:00:38.4]} 26...
Bxe2 {[%clk 0:00:38.2]} 27. Bxc7 {[%clk 0:00:24]} 27... gxf3 {[%clk 0:00:38.1]}
28. Rxg6 {[%clk 0:00:23.2]} 28... Nxg6 {[%clk 0:00:38.6]} 29. Nxe2 {[%clk
0:00:18.8]} 29... fxe2 {[%clk 0:00:38.8]} 30. d6 {[%clk 0:00:16.3]} 30... f3
{[%clk 0:00:32.6]} 31. gxf3 {[%clk 0:00:15.1]} 31... Nf4 {[%clk 0:00:32.5]} 32.
Qc4+ {[%clk 0:00:13.8]} 32... Kh8 {[%clk 0:00:31.3]} 33. Kf2 {[%clk 0:00:13.1]}
33... Qh3 {[%clk 0:00:30.4]} 34. Re1 {[%clk 0:00:10]} 34... Qxh2+ {[%clk
0:00:26.1]} 35. Ke3 {[%clk 0:00:10.4]} 35... Ng2+ {[%clk 0:00:20.2]} 36. Kxe2
{[%clk 0:00:08.1]} 36... Nxe1+ {[%clk 0:00:20.7]} 37. Kxe1 {[%clk 0:00:08.6]}
37... Qg1+ {[%clk 0:00:21.2]} 38. Kd2 {[%clk 0:00:08.6]} 38... Qf2+ {[%clk
0:00:21.3]} 39. Kc3 {[%clk 0:00:08.9]} 39... Qxf3+ {[%clk 0:00:21.2]} 40. Kb4
{[%clk 0:00:08.7]} 40... Bf8 {[%clk 0:00:21.3]} 41. Qd5 {[%clk 0:00:06]} 41...
Rc8 {[%clk 0:00:20.7]} 42. Kb5 {[%clk 0:00:05.5]} 42... Qe2+ {[%clk 0:00:19.8]}
43. Kc6 {[%clk 0:00:04.8]} 43... Qa6+ {[%clk 0:00:20.2]} 44. Kd7 {[%clk
0:00:05.2]} 44... Bg7 {[%clk 0:00:18.8]} 45. Qf7 {[%clk 0:00:04]} 45... Rf8
{[%clk 0:00:17.1]} 46. Qxh5+ {[%clk 0:00:03.9]} 46... Kg8 {[%clk 0:00:17.8]} 47.
Qg6 {[%clk 0:00:03.9]} 47... Qxa4+ {[%clk 0:00:17.8]} 48. Ke6 {[%clk 0:00:03.1]}
48... Qc4+ {[%clk 0:00:15.9]} 49. Kd7 {[%clk 0:00:02.5]} 49... Rf7+ {[%clk
0:00:16]} 50. Kd8 {[%clk 0:00:03]} 50... Qc6 {[%clk 0:00:14.4]} 51. Qe6 {[%clk
0:00:02.3]} 51... Qa8+ {[%clk 0:00:12.3]} 52. Qc8 {[%clk 0:00:03.2]} 52... Rf8+
{[%clk 0:00:12.4]} 53. Kd7 {[%clk 0:00:03.6]} 53... Qxc8+ {[%clk 0:00:13]} 0-1

[Event "*** Titled Tuesday Blitz"]
[Site "Chess.com"]
[Date "2020.04.14"]
[Round "2"]
[White "Olga_Girya"]
[Black "RuperezA"]
[Result "0-1"]
[WhiteElo "2469"]
[BlackElo "2259"]
[TimeControl "180+1"]
[EndTime "10:18:17 PDT"]
[Termination "RuperezA won by resignation"]

1. d4 {[%clk 0:03:00.9]} 1... e6 {[%clk 0:02:50.2]} 2. c4 {[%clk 0:02:59.1]}
2... Nf6 {[%clk 0:02:49.2]} 3. Nf3 {[%clk 0:02:58.2]} 3... d5 {[%clk 0:02:48.6]}
4. Nc3 {[%clk 0:02:57.3]} 4... Ke7 {[%clk 0:02:48.3]} 5. Bf4 {[%clk 0:02:55.5]}
5... c6 {[%clk 0:02:42]} 6. e3 {[%clk 0:02:55.5]} 6... Nbd7 {[%clk 0:02:34.2]}
7. Bd3 {[%clk 0:02:55.2]} 7... Nh5 {[%clk 0:02:30.8]} 8. O-O {[%clk 0:02:54.2]}
8... Nxf4 {[%clk 0:02:30.5]} 9. exf4 {[%clk 0:02:54.1]} 9... f6 {[%clk
0:02:29.1]} 10. f5 {[%clk 0:02:50.7]} 10... dxc4 {[%clk 0:02:06.1]} 11. Bxc4
{[%clk 0:02:49.3]} 11... Nb6 {[%clk 0:02:06.1]} 12. Bxe6 {[%clk 0:02:47.4]}
12... Bxe6 {[%clk 0:02:05.9]} 13. Re1 {[%clk 0:02:47.5]} 13... g5 {[%clk
0:01:32]} 14. Rxe6+ {[%clk 0:02:42.9]} 14... Kf7 {[%clk 0:01:32.1]} 15. Qb3
{[%clk 0:02:32.3]} 15... Kg7 {[%clk 0:01:27.4]} 16. a4 {[%clk 0:02:30.3]} 16...
Qd7 {[%clk 0:01:18.7]} 17. Rae1 {[%clk 0:02:25.2]} 17... Rd8 {[%clk 0:01:05.4]}
18. Ne4 {[%clk 0:02:23.7]} 18... Nd5 {[%clk 0:01:00.2]} 19. Nexg5 {[%clk
0:01:49.4]} 19... fxg5 {[%clk 0:00:55.4]} 20. f6+ {[%clk 0:01:49.4]} 20... Kg8
{[%clk 0:00:38.5]} 21. Nxg5 {[%clk 0:01:46.9]} 21... Bb4 {[%clk 0:00:23]} 22.
Qg3 {[%clk 0:01:35]} 22... Kf8 {[%clk 0:00:20.1]} 23. R1e4 {[%clk 0:01:26]}
23... h6 {[%clk 0:00:19.3]} 24. Nf3 {[%clk 0:01:18.1]} 24... Rh7 {[%clk
0:00:17.2]} 25. Ne5 {[%clk 0:01:14.7]} 25... Qc7 {[%clk 0:00:17.4]} 26. Ng6+
{[%clk 0:01:08.7]} 26... Kf7 {[%clk 0:00:17.6]} 27. Re7+ {[%clk 0:01:03.1]}
27... Bxe7 {[%clk 0:00:16.5]} 28. Rxe7+ {[%clk 0:01:02.2]} 28... Nxe7 {[%clk
0:00:15.1]} 29. Qxc7 {[%clk 0:01:01.1]} 29... Kxg6 {[%clk 0:00:11.3]} 30. Qxd8
{[%clk 0:00:58.4]} 30... Kxf6 {[%clk 0:00:11.6]} 31. h4 {[%clk 0:00:55.3]} 31...
Rf7 {[%clk 0:00:10.7]} 32. Qd6+ {[%clk 0:00:50.2]} 32... Kg7 {[%clk 0:00:10.3]}
33. Qd7 {[%clk 0:00:49.9]} 33... Nd5 {[%clk 0:00:10]} 34. Qg4+ {[%clk 0:00:49]}
34... Kh7 {[%clk 0:00:10]} 35. h5 {[%clk 0:00:48.3]} 35... Rg7 {[%clk
0:00:09.8]} 36. Qf5+ {[%clk 0:00:48.1]} 36... Kh8 {[%clk 0:00:09.9]} 37. Qe6
{[%clk 0:00:46.1]} 37... Kh7 {[%clk 0:00:10]} 38. Qe8 {[%clk 0:00:44.1]} 38...
Rc7 {[%clk 0:00:08.5]} 39. Kh2 {[%clk 0:00:40.4]} 39... Rg7 {[%clk 0:00:09.4]}
40. g3 {[%clk 0:00:39.9]} 40... Nf6 {[%clk 0:00:08.1]} 41. Qe5 {[%clk
0:00:38.3]} 41... Ng4+ {[%clk 0:00:07.6]} 42. Kh3 {[%clk 0:00:38]} 42... Nxe5
{[%clk 0:00:08.5]} 43. dxe5 {[%clk 0:00:38.2]} 43... Rg5 {[%clk 0:00:09.4]} 44.
f4 {[%clk 0:00:35.2]} 44... Rxh5+ {[%clk 0:00:09.3]} 45. Kg4 {[%clk 0:00:36.1]}
45... Rh1 {[%clk 0:00:10.2]} 46. Kf5 {[%clk 0:00:35.2]} 46... Kg7 {[%clk
0:00:10.6]} 47. Ke6 {[%clk 0:00:34.8]} 47... Rg1 {[%clk 0:00:10]} 48. f5 {[%clk
0:00:28.9]} 48... Rxg3 {[%clk 0:00:10]} 49. Ke7 {[%clk 0:00:29]} 49... Rf3
{[%clk 0:00:08.9]} 50. f6+ {[%clk 0:00:29.2]} 50... Kg6 {[%clk 0:00:09.1]} 51.
a5 {[%clk 0:00:06.6]} 51... h5 {[%clk 0:00:08.9]} 52. b4 {[%clk 0:00:06.6]}
52... h4 {[%clk 0:00:08.8]} 53. e6 {[%clk 0:00:04]} 53... Rxf6 {[%clk
0:00:08.2]} 54. Kd7 {[%clk 0:00:04.2]} 54... Rxe6 {[%clk 0:00:08.1]} 55. Kxe6
{[%clk 0:00:04.5]} 55... h3 {[%clk 0:00:09]} 0-1

[Event "*** Titled Tuesday Blitz"]
[Site "Chess.com"]
[Date "2020.04.14"]
[Round "2"]
[White "kleopl"]
[Black "BelaKis"]
[Result "1-0"]
[WhiteElo "2395"]
[BlackElo "2082"]
[TimeControl "180+1"]
[EndTime "10:18:17 PDT"]
[Termination "kleopl won on time"]

1. c4 {[%clk 0:03:00.9]} 1... g6 {[%clk 0:02:58.3]} 2. Nc3 {[%clk 0:03:00.2]}
2... Bg7 {[%clk 0:02:59]} 3. g3 {[%clk 0:02:59.7]} 3... e5 {[%clk 0:02:56.3]} 4.
Bg2 {[%clk 0:02:57.6]} 4... Nc6 {[%clk 0:02:56.8]} 5. e3 {[%clk 0:02:55.4]} 5...
d6 {[%clk 0:02:48.3]} 6. Nge2 {[%clk 0:02:55.4]} 6... h5 {[%clk 0:02:44.4]} 7.
h4 {[%clk 0:02:52.7]} 7... Bg4 {[%clk 0:02:39]} 8. f3 {[%clk 0:02:47.9]} 8...
Bd7 {[%clk 0:02:25.3]} 9. d4 {[%clk 0:02:43.1]} 9... exd4 {[%clk 0:02:08.5]} 10.
exd4 {[%clk 0:02:44]} 10... Nh6 {[%clk 0:02:08.3]} 11. Bg5 {[%clk 0:02:35.9]}
11... f6 {[%clk 0:01:44.5]} 12. Bf4 {[%clk 0:02:33.8]} 12... O-O {[%clk
0:01:43.8]} 13. Qd2 {[%clk 0:02:29.4]} 13... Kh7 {[%clk 0:01:36.1]} 14. O-O-O
{[%clk 0:02:22.5]} 14... a6 {[%clk 0:01:23.6]} 15. d5 {[%clk 0:02:11.6]} 15...
Na5 {[%clk 0:01:20.9]} 16. Qd3 {[%clk 0:02:02.1]} 16... b5 {[%clk 0:01:13.4]}
17. cxb5 {[%clk 0:01:50.7]} 17... axb5 {[%clk 0:01:14.3]} 18. Nxb5 {[%clk
0:01:50.1]} 18... Qb8 {[%clk 0:00:59.1]} 19. Nbd4 {[%clk 0:01:45.8]} 19... Qb6
{[%clk 0:00:54.4]} 20. Rd2 {[%clk 0:01:38.5]} 20... Rfb8 {[%clk 0:00:51.7]} 21.
Be3 {[%clk 0:01:24.4]} 21... c5 {[%clk 0:00:27.8]} 22. dxc6 {[%clk 0:01:21.3]}
22... Nxc6 {[%clk 0:00:27.7]} 23. Kb1 {[%clk 0:00:36]} 23... Nf5 {[%clk
0:00:26.2]} 24. Nxf5 {[%clk 0:00:34.1]} 24... Bxf5 {[%clk 0:00:26.5]} 25. Bxb6
{[%clk 0:00:32.5]} 25... Bxd3+ {[%clk 0:00:23.9]} 26. Rxd3 {[%clk 0:00:33.4]}
26... Rxb6 {[%clk 0:00:23.6]} 27. Rxd6 {[%clk 0:00:32.6]} 27... f5 {[%clk
0:00:19.8]} 28. b3 {[%clk 0:00:32.7]} 28... Rba6 {[%clk 0:00:18.7]} 29. Nc1
{[%clk 0:00:25.5]} 29... Nb4 {[%clk 0:00:13.4]} 30. Rxa6 {[%clk 0:00:24.3]}
30... Rxa6 {[%clk 0:00:14.3]} 31. Bf1 {[%clk 0:00:24.1]} 31... Rd6 {[%clk
0:00:13.7]} 32. Rh2 {[%clk 0:00:21.7]} 32... Rd1 {[%clk 0:00:12.9]} 33. Bc4
{[%clk 0:00:18.1]} 33... Nc6 {[%clk 0:00:08.9]} 34. a4 {[%clk 0:00:17.3]} 34...
Ne5 {[%clk 0:00:08.1]} 35. Be2 {[%clk 0:00:15.9]} 35... Rd2 {[%clk 0:00:08.2]}
36. Rg2 {[%clk 0:00:13.7]} 36... Nc6 {[%clk 0:00:07.8]} 37. Bf1 {[%clk
0:00:13.3]} 37... Rd1 {[%clk 0:00:07.1]} 38. Bb5 {[%clk 0:00:12.8]} 38... Nd4
{[%clk 0:00:06.7]} 39. Bc4 {[%clk 0:00:10]} 39... Nxf3 {[%clk 0:00:06.2]} 40. a5
{[%clk 0:00:09.3]} 40... Nd2+ {[%clk 0:00:05.2]} 41. Kc2 {[%clk 0:00:08.7]}
41... Nxc4 {[%clk 0:00:05.2]} 42. bxc4 {[%clk 0:00:07.4]} 42... Rd6 {[%clk
0:00:03.7]} 43. Rd2 {[%clk 0:00:05.6]} 43... Ra6 {[%clk 0:00:03.2]} 44. Rd5
{[%clk 0:00:05.6]} 44... Kg8 {[%clk 0:00:03]} 45. Nb3 {[%clk 0:00:06.2]} 45...
Kf7 {[%clk 0:00:03.2]} 46. Rb5 {[%clk 0:00:06.4]} 46... Ra8 {[%clk 0:00:03.7]}
47. Rb7+ {[%clk 0:00:06.6]} 47... Kf8 {[%clk 0:00:02.8]} 48. Rb6 {[%clk
0:00:07.5]} 48... Be5 {[%clk 0:00:02.6]} 49. a6 {[%clk 0:00:07.5]} 49... f4
{[%clk 0:00:02.8]} 50. gxf4 {[%clk 0:00:07]} 50... Bxf4 {[%clk 0:00:03.7]} 51.
Rf6+ {[%clk 0:00:07.1]} 51... Ke7 {[%clk 0:00:02.3]} 52. Rxf4 {[%clk 0:00:08]}
52... Kd6 {[%clk 0:00:02.5]} 53. c5+ {[%clk 0:00:08.8]} 53... Kd5 {[%clk
0:00:01.9]} 54. Rf6 {[%clk 0:00:08.7]} 54... Kc4 {[%clk 0:00:01.1]} 55. Rxg6
{[%clk 0:00:08.7]} 1-0

[Event "*** Titled Tuesday Blitz"]
[Site "Chess.com"]
[Date "2020.04.14"]
[Round "2"]
[White "Fy_Rakotomaharo"]
[Black "GMNeiksans"]
[Result "0-1"]
[WhiteElo "2576"]
[BlackElo "2857"]
[TimeControl "180+1"]
[EndTime "10:18:18 PDT"]
[Termination "GMNeiksans won by resignation"]

1. e4 {[%clk 0:03:00.9]} 1... c5 {[%clk 0:02:59.4]} 2. Nf3 {[%clk 0:03:00.9]}
2... e6 {[%clk 0:02:59.5]} 3. d4 {[%clk 0:03:01.1]} 3... cxd4 {[%clk 0:02:59.9]}
4. Nxd4 {[%clk 0:03:02]} 4... Nc6 {[%clk 0:03:00.3]} 5. Nc3 {[%clk 0:03:00.8]}
5... Qc7 {[%clk 0:03:00.6]} 6. g3 {[%clk 0:03:00.7]} 6... Nf6 {[%clk 0:02:56.4]}
7. Bg2 {[%clk 0:02:56.4]} 7... a6 {[%clk 0:02:52.2]} 8. O-O {[%clk 0:02:56]}
8... Bb4 {[%clk 0:02:52.1]} 9. Bg5 {[%clk 0:02:10]} 9... h6 {[%clk 0:02:44.9]}
10. Bxf6 {[%clk 0:02:08.1]} 10... gxf6 {[%clk 0:02:45.3]} 11. Nce2 {[%clk
0:01:48]} 11... h5 {[%clk 0:02:43.1]} 12. Nf4 {[%clk 0:01:32.1]} 12... h4 {[%clk
0:02:43]} 13. Nxc6 {[%clk 0:01:24.2]} 13... bxc6 {[%clk 0:02:38.5]} 14. Qg4
{[%clk 0:01:19.9]} 14... hxg3 {[%clk 0:02:21.5]} 15. fxg3 {[%clk 0:01:14]} 15...
Be7 {[%clk 0:02:08.4]} 16. Qg7 {[%clk 0:01:02.6]} 16... Rf8 {[%clk 0:02:05.6]}
17. Nh5 {[%clk 0:00:59.6]} 17... Qb6+ {[%clk 0:02:03.3]} 18. Kh1 {[%clk
0:00:59.6]} 18... Qxb2 {[%clk 0:02:03.5]} 19. Nxf6+ {[%clk 0:00:55.5]} 19...
Bxf6 {[%clk 0:02:03.9]} 20. Qxf6 {[%clk 0:00:56.4]} 20... Qxf6 {[%clk
0:02:01.8]} 21. Rxf6 {[%clk 0:00:57.3]} 21... Ke7 {[%clk 0:01:58.2]} 22. Raf1
{[%clk 0:00:51.4]} 22... Rb8 {[%clk 0:01:54.7]} 23. e5 {[%clk 0:00:43]} 23...
Rb5 {[%clk 0:01:53.8]} 24. Be4 {[%clk 0:00:42.9]} 24... Rxe5 {[%clk 0:01:51.9]}
25. Bg6 {[%clk 0:00:42.5]} 25... Re1 {[%clk 0:01:35.9]} 26. Rxe1 {[%clk
0:00:30]} 26... Kxf6 {[%clk 0:01:35.7]} 27. Bh5 {[%clk 0:00:30.3]} 27... d5
{[%clk 0:01:32.2]} 28. Kg1 {[%clk 0:00:25.8]} 28... e5 {[%clk 0:01:32.1]} 29.
Rb1 {[%clk 0:00:23.8]} 29... Bf5 {[%clk 0:01:27]} 30. Rb6 {[%clk 0:00:23.6]}
30... Rc8 {[%clk 0:01:27.2]} 31. Bd1 {[%clk 0:00:20.6]} 31... e4 {[%clk
0:01:16.1]} 32. Kf2 {[%clk 0:00:20.4]} 32... Ke5 {[%clk 0:01:16.5]} 33. Rxa6
{[%clk 0:00:20.2]} 33... d4 {[%clk 0:01:15]} 34. g4 {[%clk 0:00:19.2]} 34... e3+
{[%clk 0:01:14.7]} 35. Kg3 {[%clk 0:00:17.2]} 35... Be4 {[%clk 0:01:13.5]} 36.
Ra7 {[%clk 0:00:18.1]} 36... Bd5 {[%clk 0:00:53.4]} 37. Bf3 {[%clk 0:00:14.8]}
37... Be6 {[%clk 0:00:46.1]} 38. a4 {[%clk 0:00:14.8]} 38... c5 {[%clk
0:00:46.5]} 39. Ra5 {[%clk 0:00:13.1]} 39... Bd5 {[%clk 0:00:42]} 40. Ra7 {[%clk
0:00:10.7]} 40... f6 {[%clk 0:00:32.8]} 41. h4 {[%clk 0:00:09.7]} 41... Rb8
{[%clk 0:00:28.2]} 42. Ra6 {[%clk 0:00:06.8]} 42... Bxf3 {[%clk 0:00:22.1]} 43.
Kxf3 {[%clk 0:00:07.7]} 43... Rb2 {[%clk 0:00:22.3]} 44. h5 {[%clk 0:00:06.7]}
44... Rxc2 {[%clk 0:00:22.5]} 45. h6 {[%clk 0:00:06.2]} 45... Rh2 {[%clk
0:00:22.5]} 46. Rc6 {[%clk 0:00:05.4]} 46... Rxh6 {[%clk 0:00:19.9]} 47. Rxc5+
{[%clk 0:00:04.6]} 47... Kd6 {[%clk 0:00:20.1]} 48. Rc8 {[%clk 0:00:03.7]} 48...
Rh2 {[%clk 0:00:19.4]} 49. Rd8+ {[%clk 0:00:03.2]} 49... Kc5 {[%clk 0:00:19.8]}
50. a5 {[%clk 0:00:03.8]} 50... Rf2+ {[%clk 0:00:17.9]} 51. Kg3 {[%clk 0:00:04]}
51... Ra2 {[%clk 0:00:17.5]} 52. a6 {[%clk 0:00:04]} 52... Rxa6 {[%clk 0:00:17]}
53. Rc8+ {[%clk 0:00:04]} 53... Rc6 {[%clk 0:00:16.8]} 54. Rd8 {[%clk
0:00:04.2]} 54... Re6 {[%clk 0:00:15.6]} 55. Rc8+ {[%clk 0:00:03.6]} 55... Kd5
{[%clk 0:00:15.1]} 56. Rd8+ {[%clk 0:00:03.5]} 56... Kc4 {[%clk 0:00:15.5]} 57.
Kg2 {[%clk 0:00:04.1]} 57... e2 {[%clk 0:00:15.6]} 0-1

[Event "*** Titled Tuesday Blitz"]
[Site "Chess.com"]
[Date "2020.04.14"]
[Round "2"]
[White "GM_RobertoMogranzini"]
[Black "Justinz"]
[Result "1-0"]
[WhiteElo "2509"]
[BlackElo "2278"]
[TimeControl "180+1"]
[EndTime "10:18:19 PDT"]
[Termination "GM_RobertoMogranzini won by resignation"]

1. e4 {[%clk 0:03:00.9]} 1... c5 {[%clk 0:02:52.2]} 2. Nf3 {[%clk 0:02:59.6]}
2... d6 {[%clk 0:02:49.3]} 3. Nc3 {[%clk 0:02:59.5]} 3... Nf6 {[%clk 0:02:41.1]}
4. e5 {[%clk 0:02:59.2]} 4... dxe5 {[%clk 0:02:38.6]} 5. Nxe5 {[%clk 0:03:00.1]}
5... a6 {[%clk 0:02:36.4]} 6. a4 {[%clk 0:02:59.5]} 6... e6 {[%clk 0:02:36.2]}
7. g3 {[%clk 0:02:59.1]} 7... Nbd7 {[%clk 0:02:34.8]} 8. Nc4 {[%clk 0:02:58.6]}
8... b6 {[%clk 0:02:29.5]} 9. Bg2 {[%clk 0:02:58.4]} 9... Rb8 {[%clk 0:02:29.5]}
10. O-O {[%clk 0:02:55.3]} 10... Bb7 {[%clk 0:02:21.9]} 11. d3 {[%clk
0:02:52.7]} 11... Bxg2 {[%clk 0:02:20.4]} 12. Kxg2 {[%clk 0:02:53.6]} 12... b5
{[%clk 0:02:12.2]} 13. axb5 {[%clk 0:02:44.6]} 13... axb5 {[%clk 0:02:13.1]} 14.
Na5 {[%clk 0:02:38.4]} 14... Qb6 {[%clk 0:02:07.8]} 15. Qf3 {[%clk 0:02:23.6]}
15... Bd6 {[%clk 0:01:58.7]} 16. Re1 {[%clk 0:02:04.3]} 16... O-O {[%clk
0:01:55.1]} 17. Qc6 {[%clk 0:01:34.3]} 17... Ra8 {[%clk 0:01:27.9]} 18. Qxb6
{[%clk 0:01:29.7]} 18... Nxb6 {[%clk 0:01:25.9]} 19. Nxb5 {[%clk 0:01:27]} 19...
Be7 {[%clk 0:01:25.5]} 20. Bd2 {[%clk 0:01:20.8]} 20... Rfc8 {[%clk 0:01:16.4]}
21. Nc4 {[%clk 0:01:10.4]} 21... Nbd5 {[%clk 0:01:11.3]} 22. Nbd6 {[%clk
0:00:59.8]} 22... Rcb8 {[%clk 0:01:07.3]} 23. Ne4 {[%clk 0:00:52.4]} 23... h6
{[%clk 0:01:01.7]} 24. b3 {[%clk 0:00:44.5]} 24... Nb4 {[%clk 0:00:54.2]} 25.
Bxb4 {[%clk 0:00:44.2]} 25... cxb4 {[%clk 0:00:53.7]} 26. Ra4 {[%clk 0:00:28]}
26... Rd8 {[%clk 0:00:40.5]} 27. Rea1 {[%clk 0:00:27.2]} 27... Rac8 {[%clk
0:00:40.3]} 28. Ra7 {[%clk 0:00:26.4]} 28... Bf8 {[%clk 0:00:39.7]} 29. Rb7
{[%clk 0:00:26.1]} 29... Rd7 {[%clk 0:00:39]} 30. Raa7 {[%clk 0:00:26.1]} 30...
Rxb7 {[%clk 0:00:38.8]} 31. Rxb7 {[%clk 0:00:27]} 31... Ra8 {[%clk 0:00:37.5]}
32. Ned6 {[%clk 0:00:24.8]} 32... Ra2 {[%clk 0:00:36]} 33. Nxf7 {[%clk
0:00:21.4]} 33... Rxc2 {[%clk 0:00:35.8]} 34. h3 {[%clk 0:00:20.9]} 34... Nd5
{[%clk 0:00:35.4]} 35. Nfe5 {[%clk 0:00:20]} 35... Rc3 {[%clk 0:00:34.5]} 36.
Rb8 {[%clk 0:00:19.6]} 36... Nf6 {[%clk 0:00:32.8]} 37. Ng6 {[%clk 0:00:19.7]}
37... Nd7 {[%clk 0:00:31.3]} 38. Rd8 {[%clk 0:00:20.2]} 38... Kf7 {[%clk
0:00:31.4]} 39. Nce5+ {[%clk 0:00:18.7]} 39... Nxe5 {[%clk 0:00:30.5]} 40. Nxe5+
{[%clk 0:00:19.6]} 40... Ke7 {[%clk 0:00:29.5]} 41. Rb8 {[%clk 0:00:18.9]} 41...
Kd6 {[%clk 0:00:15.4]} 42. Nc4+ {[%clk 0:00:17.9]} 42... Ke7 {[%clk 0:00:15.5]}
43. Rxb4 {[%clk 0:00:17.6]} 43... Kf6 {[%clk 0:00:14.6]} 44. Rb7 {[%clk
0:00:18.5]} 44... Be7 {[%clk 0:00:14.3]} 45. b4 {[%clk 0:00:18.2]} 45... Rxd3
{[%clk 0:00:14.3]} 46. b5 {[%clk 0:00:18.4]} 46... Rc3 {[%clk 0:00:14.6]} 47.
Ne3 {[%clk 0:00:18.4]} 47... Bc5 {[%clk 0:00:14.5]} 48. Kf3 {[%clk 0:00:18.6]}
48... Rb3 {[%clk 0:00:14.4]} 49. h4 {[%clk 0:00:17.9]} 49... h5 {[%clk
0:00:14.3]} 50. Ke4 {[%clk 0:00:18.2]} 50... Rb2 {[%clk 0:00:13.2]} 51. Kf3
{[%clk 0:00:18.5]} 51... Rb3 {[%clk 0:00:12.5]} 52. Rb8 {[%clk 0:00:18.7]} 52...
g6 {[%clk 0:00:11.4]} 53. Rb7 {[%clk 0:00:17.5]} 53... Ke5 {[%clk 0:00:10.2]}
54. Rb8 {[%clk 0:00:15.5]} 54... Kf6 {[%clk 0:00:10.2]} 55. Ke4 {[%clk
0:00:15.2]} 55... Rb4+ {[%clk 0:00:09.8]} 56. Kd3 {[%clk 0:00:15.7]} 56... Rb2
{[%clk 0:00:09.8]} 57. Kc4 {[%clk 0:00:15.3]} 57... Bxe3 {[%clk 0:00:07.9]} 58.
fxe3 {[%clk 0:00:16.2]} 58... Rg2 {[%clk 0:00:07.6]} 59. b6 {[%clk 0:00:16.2]}
59... Rxg3 {[%clk 0:00:07.9]} 60. b7 {[%clk 0:00:16.2]} 60... Rg4+ {[%clk
0:00:07.2]} 61. Kc5 {[%clk 0:00:15.1]} 1-0